{"text_format":"1","workbook":"xlsx","n_sheets":1,"sheets":["Waiting List"],"not_rendered":{"charts":0,"images":1,"macros":1,"external_links":0,"defined_names":1,"comments":0,"pivot_tables":0},"unopened":[],"bounds":{"document_bytes":16777216,"sheet_cells":100000,"rows_first":2000,"rows_last":500,"rows_between":2000,"halvings":0,"cell_chars":16384,"cell_head_chars":4096},"cells_cut":0,"cells_raw":0,"read":"whole","date_system":"1900"}

{"sheet":"Waiting List","index":0,"n_rows":404,"n_cols":14,"rows_kept":404,"cut":false,"hidden":false,"merged":[]}
[{"$error":"#VALUE!"},"District Waiting List"]
["Total Squirrels",{"$f":"COUNTIF(Group[[Section ]], \"Squirrels\")","v":1}]
["Total Beavers",{"$f":"COUNTIF(Group[[Section ]], \"Beavers\")","v":1}]
["Total Cubs",{"$f":"COUNTIF(Group[[Section ]], \"Cubs\")","v":1}]
["Total Scouts",{"$f":"COUNTIF(Group[[Section ]], \"Scouts\")","v":1}]
["Total Explorers",{"$f":"COUNTIF(Group[[Section ]], \"Explorers\")","v":1}]
[null,null,"This will populate automatically","This will populate automatically"]
["Child name","Date of birth","Age","Section ","Adult name","Email address","Postcode","Phone number","Preferred Group","Next Nearest Group 1","Next Nearest Group 2","Added to waiting list on","Sent welcome email","Sent termly email"]
["Example Squirrel","2020-01-01",{"$f":"IF(DATEDIF(B9,TODAY(),\"y\")<18,DATEDIF(B9,TODAY(),\"y\"),\"\")","v":5},{"$f":"IF(AND(C9>=4, C9<6), \"Squirrels\",\n IF(AND(C9>=6, C9<8), \"Beavers\",\n IF(AND(C9>=8, C9<10.5), \"Cubs\",\n IF(AND(C9>=10.5, C9<14), \"Scouts\", IF(AND(C9>14, C9<18), \"Explorers\", \"\")))))","v":"Squirrels"},"Example","Example@example",null,"Example",null,null,null,"04/07/2024",true,true]
["Example Scout","2012-10-09",12,{"$f":"IF(AND(C10>=4, C10<6), \"Squirrels\",\n IF(AND(C10>=6, C10<8), \"Beavers\",\n IF(AND(C10>=8, C10<10.5), \"Cubs\",\n IF(AND(C10>=10.5, C10<14), \"Scouts\", IF(AND(C10>14, C10<18), \"Explorers\", \"\")))))","v":"Scouts"},"Example","Example@example",null,"Example",null,null,null,"01/02/2025",true,true]
["Example Cub","2016-07-05",9,"Cubs","Example","Example@example",null,"Example",null,null,null,"10/01/2025",true,true]
["Example Beaver","2018-01-01",7,"Beavers","Example","Example@example",null,"Example",null,null,null,"26/09/2024",true,true]
["Example Explorer","2010-09-23",15,"Explorers","Example","Example@example",null,"Example",null,null,null,"21/09/2025",false,false]
[null,null,"","",null,null,null,null,null,null,null,null,false,false]
[null,null,"","",null,null,null,null,null,null,null,null,false,false]
[null,null,"","",null,null,null,null,null,null,null,null,false,false]
[null,null,"","",null,null,null,null,null,null,null,null,false,false]
[null,null,"","",null,null,null,null,null,null,null,null,false,false]
[null,null,"","",null,null,null,null,null,null,null,null,false,false]
[null,null,"","",null,null,null,null,null,null,null,null,false,false]
[null,null,"","",null,null,null,null,null,null,null,null,false,false]
[null,null,"","",null,null,null,null,null,null,null,null,false,false]
[null,null,"","",null,null,null,null,null,null,null,null,false,false]
[null,null,"","",null,null,null,null,null,null,null,null,false,false]
[null,null,"","",null,null,null,null,null,null,null,null,false,false]
[null,null,"","",null,null,null,null,null,null,null,null,false,false]
[null,null,"","",null,null,null,null,null,null,null,null,false,false]
[null,null,"","",null,null,null,null,null,null,null,null,false,false]
[null,null,"","",null,null,null,null,null,null,null,null,false,false]
[null,null,"","",null,null,null,null,null,null,null,null,false,false]
[null,null,"","",null,null,null,null,null,null,null,null,false,false]
[null,null,"","",null,null,null,null,null,null,null,null,false,false]
[null,null,"","",null,null,null,null,null,null,null,null,false,false]
[null,null,"","",null,null,null,null,null,null,null,null,false,false]
[null,null,"","",null,null,null,null,null,null,null,null,false,false]
[null,null,"","",null,null,null,null,null,null,null,null,false,false]
[null,null,"","",null,null,null,null,null,null,null,null,false,false]
[null,null,"","",null,null,null,null,null,null,null,null,false,false]
[null,null,"","",null,null,null,null,null,null,null,null,false,false]
[null,null,"","",null,null,null,null,null,null,null,null,false,false]
[null,null,"","",null,null,null,null,null,null,null,null,false,false]
[null,null,"","",null,null,null,null,null,null,null,null,false,false]
[null,null,"","",null,null,null,null,null,null,null,null,false,false]
[null,null,"","",null,null,null,null,null,null,null,null,false,false]
[null,null,"","",null,null,null,null,null,null,null,null,false,false]
[null,null,"","",null,null,null,null,null,null,null,null,false,false]
[null,null,"","",null,null,null,null,null,null,null,null,false,false]
[null,null,"","",null,null,null,null,null,null,null,null,false,false]
[null,null,"","",null,null,null,null,null,null,null,null,false,false]
[null,null,"","",null,null,null,null,null,null,null,null,false,false]
[null,null,"","",null,null,null,null,null,null,null,null,false,false]
[null,null,"","",null,null,null,null,null,null,null,null,false,false]
[null,null,"","",null,null,null,null,null,null,null,null,false,false]
[null,null,"","",null,null,null,null,null,null,null,null,false,false]
[null,null,"","",null,null,null,null,null,null,null,null,false,false]
[null,null,"","",null,null,null,null,null,null,null,null,false,false]
[null,null,"","",null,null,null,null,null,null,null,null,false,false]
[null,null,"","",null,null,null,null,null,null,null,null,false,false]
[null,null,"","",null,null,null,null,null,null,null,null,false,false]
[null,null,"","",null,null,null,null,null,null,null,null,false,false]
[null,null,"","",null,null,null,null,null,null,null,null,false,false]
[null,null,"","",null,null,null,null,null,null,null,null,false,false]
[null,null,"","",null,null,null,null,null,null,null,null,false,false]
[null,null,"","",null,null,null,null,null,null,null,null,false,false]
[null,null,"","",null,null,null,null,null,null,null,null,false,false]
[null,null,"","",null,null,null,null,null,null,null,null,false,false]
[null,null,"","",null,null,null,null,null,null,null,null,false,false]
[null,null,"","",null,null,null,null,null,null,null,null,false,false]
[null,null,"","",null,null,null,null,null,null,null,null,false,false]
[null,null,"","",null,null,null,null,null,null,null,null,false,false]
[null,null,"","",null,null,null,null,null,null,null,null,false,false]
[null,null,"","",null,null,null,null,null,null,null,null,false,false]
[null,null,{"$f":"IF(DATEDIF(B73,TODAY(),\"y\")<18,DATEDIF(B73,TODAY(),\"y\"),\"\")","v":""},"",null,null,null,null,null,null,null,null,false,false]
[null,null,"",{"$f":"IF(AND(C74>=4, C74<6), \"Squirrels\",\n IF(AND(C74>=6, C74<8), \"Beavers\",\n IF(AND(C74>=8, C74<10.5), \"Cubs\",\n IF(AND(C74>=10.5, C74<14), \"Scouts\", IF(AND(C74>14, C74<18), \"Explorers\", \"\")))))","v":""},null,null,null,null,null,null,null,null,false,false]
[null,null,"","",null,null,null,null,null,null,null,null,false,false]
[null,null,"","",null,null,null,null,null,null,null,null,false,false]
[null,null,"","",null,null,null,null,null,null,null,null,false,false]
[null,null,"","",null,null,null,null,null,null,null,null,false,false]
[null,null,"","",null,null,null,null,null,null,null,null,false,false]
[null,null,"","",null,null,null,null,null,null,null,null,false,false]
[null,null,"","",null,null,null,null,null,null,null,null,false,false]
[null,null,"","",null,null,null,null,null,null,null,null,false,false]
[null,null,"","",null,null,null,null,null,null,null,null,false,false]
[null,null,"","",null,null,null,null,null,null,null,null,false,false]
[null,null,"","",null,null,null,null,null,null,null,null,false,false]
[null,null,"","",null,null,null,null,null,null,null,null,false,false]
[null,null,"","",null,null,null,null,null,null,null,null,false,false]
[null,null,"","",null,null,null,null,null,null,null,null,false,false]
[null,null,"","",null,null,null,null,null,null,null,null,false,false]
[null,null,"","",null,null,null,null,null,null,null,null,false,false]
[null,null,"","",null,null,null,null,null,null,null,null,false,false]
[null,null,"","",null,null,null,null,null,null,null,null,false,false]
[null,null,"","",null,null,null,null,null,null,null,null,false,false]
[null,null,"","",null,null,null,null,null,null,null,null,false,false]
[null,null,"","",null,null,null,null,null,null,null,null,false,false]
[null,null,"","",null,null,null,null,null,null,null,null,false,false]
[null,null,"","",null,null,null,null,null,null,null,null,false,false]
[null,null,"","",null,null,null,null,null,null,null,null,false,false]
[null,null,"","",null,null,null,null,null,null,null,null,false,false]
[null,null,"","",null,null,null,null,null,null,null,null,false,false]
[null,null,"","",null,null,null,null,null,null,null,null,false,false]
[null,null,"","",null,null,null,null,null,null,null,null,false,false]
[null,null,"","",null,null,null,null,null,null,null,null,false,false]
[null,null,"","",null,null,null,null,null,null,null,null,false,false]
[null,null,"","",null,null,null,null,null,null,null,null,false,false]
[null,null,"","",null,null,null,null,null,null,null,null,false,false]
[null,null,"","",null,null,null,null,null,null,null,null,false,false]
[null,null,"","",null,null,null,null,null,null,null,null,false,false]
[null,null,"","",null,null,null,null,null,null,null,null,false,false]
[null,null,"","",null,null,null,null,null,null,null,null,false,false]
[null,null,"","",null,null,null,null,null,null,null,null,false,false]
[null,null,"","",null,null,null,null,null,null,null,null,false,false]
[null,null,"","",null,null,null,null,null,null,null,null,false,false]
[null,null,"","",null,null,null,null,null,null,null,null,false,false]
[null,null,"","",null,null,null,null,null,null,null,null,false,false]
[null,null,"","",null,null,null,null,null,null,null,null,false,false]
[null,null,"","",null,null,null,null,null,null,null,null,false,false]
[null,null,"","",null,null,null,null,null,null,null,null,false,false]
[null,null,"","",null,null,null,null,null,null,null,null,false,false]
[null,null,"","",null,null,null,null,null,null,null,null,false,false]
[null,null,"","",null,null,null,null,null,null,null,null,false,false]
[null,null,"","",null,null,null,null,null,null,null,null,false,false]
[null,null,"","",null,null,null,null,null,null,null,null,false,false]
[null,null,"","",null,null,null,null,null,null,null,null,false,false]
[null,null,"","",null,null,null,null,null,null,null,null,false,false]
[null,null,"","",null,null,null,null,null,null,null,null,false,false]
[null,null,"","",null,null,null,null,null,null,null,null,false,false]
[null,null,"","",null,null,null,null,null,null,null,null,false,false]
[null,null,"","",null,null,null,null,null,null,null,null,false,false]
[null,null,"","",null,null,null,null,null,null,null,null,false,false]
[null,null,"","",null,null,null,null,null,null,null,null,false,false]
[null,null,"","",null,null,null,null,null,null,null,null,false,false]
[null,null,"","",null,null,null,null,null,null,null,null,false,false]
[null,null,"","",null,null,null,null,null,null,null,null,false,false]
[null,null,"","",null,null,null,null,null,null,null,null,false,false]
[null,null,"","",null,null,null,null,null,null,null,null,false,false]
[null,null,{"$f":"IF(DATEDIF(B137,TODAY(),\"y\")<18,DATEDIF(B137,TODAY(),\"y\"),\"\")","v":""},"",null,null,null,null,null,null,null,null,false,false]
[null,null,"",{"$f":"IF(AND(C138>=4, C138<6), \"Squirrels\",\n IF(AND(C138>=6, C138<8), \"Beavers\",\n IF(AND(C138>=8, C138<10.5), \"Cubs\",\n IF(AND(C138>=10.5, C138<14), \"Scouts\", IF(AND(C138>14, C138<18), \"Explorers\", \"\")))))","v":""},null,null,null,null,null,null,null,null,false,false]
[null,null,"","",null,null,null,null,null,null,null,null,false,false]
[null,null,"","",null,null,null,null,null,null,null,null,false,false]
[null,null,"","",null,null,null,null,null,null,null,null,false,false]
[null,null,"","",null,null,null,null,null,null,null,null,false,false]
[null,null,"","",null,null,null,null,null,null,null,null,false,false]
[null,null,"","",null,null,null,null,null,null,null,null,false,false]
[null,null,"","",null,null,null,null,null,null,null,null,false,false]
[null,null,"","",null,null,null,null,null,null,null,null,false,false]
[null,null,"","",null,null,null,null,null,null,null,null,false,false]
[null,null,"","",null,null,null,null,null,null,null,null,false,false]
[null,null,"","",null,null,null,null,null,null,null,null,false,false]
[null,null,"","",null,null,null,null,null,null,null,null,false,false]
[null,null,"","",null,null,null,null,null,null,null,null,false,false]
[null,null,"","",null,null,null,null,null,null,null,null,false,false]
[null,null,"","",null,null,null,null,null,null,null,null,false,false]
[null,null,"","",null,null,null,null,null,null,null,null,false,false]
[null,null,"","",null,null,null,null,null,null,null,null,false,false]
[null,null,"","",null,null,null,null,null,null,null,null,false,false]
[null,null,"","",null,null,null,null,null,null,null,null,false,false]
[null,null,"","",null,null,null,null,null,null,null,null,false,false]
[null,null,"","",null,null,null,null,null,null,null,null,false,false]
[null,null,"","",null,null,null,null,null,null,null,null,false,false]
[null,null,"","",null,null,null,null,null,null,null,null,false,false]
[null,null,"","",null,null,null,null,null,null,null,null,false,false]
[null,null,"","",null,null,null,null,null,null,null,null,false,false]
[null,null,"","",null,null,null,null,null,null,null,null,false,false]
[null,null,"","",null,null,null,null,null,null,null,null,false,false]
[null,null,"","",null,null,null,null,null,null,null,null,false,false]
[null,null,"","",null,null,null,null,null,null,null,null,false,false]
[null,null,"","",null,null,null,null,null,null,null,null,false,false]
[null,null,"","",null,null,null,null,null,null,null,null,false,false]
[null,null,"","",null,null,null,null,null,null,null,null,false,false]
[null,null,"","",null,null,null,null,null,null,null,null,false,false]
[null,null,"","",null,null,null,null,null,null,null,null,false,false]
[null,null,"","",null,null,null,null,null,null,null,null,false,false]
[null,null,"","",null,null,null,null,null,null,null,null,false,false]
[null,null,"","",null,null,null,null,null,null,null,null,false,false]
[null,null,"","",null,null,null,null,null,null,null,null,false,false]
[null,null,"","",null,null,null,null,null,null,null,null,false,false]
[null,null,"","",null,null,null,null,null,null,null,null,false,false]
[null,null,"","",null,null,null,null,null,null,null,null,false,false]
[null,null,"","",null,null,null,null,null,null,null,null,false,false]
[null,null,"","",null,null,null,null,null,null,null,null,false,false]
[null,null,"","",null,null,null,null,null,null,null,null,false,false]
[null,null,"","",null,null,null,null,null,null,null,null,false,false]
[null,null,"","",null,null,null,null,null,null,null,null,false,false]
[null,null,"","",null,null,null,null,null,null,null,null,false,false]
[null,null,"","",null,null,null,null,null,null,null,null,false,false]
[null,null,"","",null,null,null,null,null,null,null,null,false,false]
[null,null,"","",null,null,null,null,null,null,null,null,false,false]
[null,null,"","",null,null,null,null,null,null,null,null,false,false]
[null,null,"","",null,null,null,null,null,null,null,null,false,false]
[null,null,"","",null,null,null,null,null,null,null,null,false,false]
[null,null,"","",null,null,null,null,null,null,null,null,false,false]
[null,null,"","",null,null,null,null,null,null,null,null,false,false]
[null,null,"","",null,null,null,null,null,null,null,null,false,false]
[null,null,"","",null,null,null,null,null,null,null,null,false,false]
[null,null,"","",null,null,null,null,null,null,null,null,false,false]
[null,null,"","",null,null,null,null,null,null,null,null,false,false]
[null,null,"","",null,null,null,null,null,null,null,null,false,false]
[null,null,"","",null,null,null,null,null,null,null,null,false,false]
[null,null,"","",null,null,null,null,null,null,null,null,false,false]
[null,null,{"$f":"IF(DATEDIF(B201,TODAY(),\"y\")<18,DATEDIF(B201,TODAY(),\"y\"),\"\")","v":""},"",null,null,null,null,null,null,null,null,false,false]
[null,null,"",{"$f":"IF(AND(C202>=4, C202<6), \"Squirrels\",\n IF(AND(C202>=6, C202<8), \"Beavers\",\n IF(AND(C202>=8, C202<10.5), \"Cubs\",\n IF(AND(C202>=10.5, C202<14), \"Scouts\", IF(AND(C202>14, C202<18), \"Explorers\", \"\")))))","v":""},null,null,null,null,null,null,null,null,false,false]
[null,null,"","",null,null,null,null,null,null,null,null,false,false]
[null,null,"","",null,null,null,null,null,null,null,null,false,false]
[null,null,"","",null,null,null,null,null,null,null,null,false,false]
[null,null,"","",null,null,null,null,null,null,null,null,false,false]
[null,null,"","",null,null,null,null,null,null,null,null,false,false]
[null,null,"","",null,null,null,null,null,null,null,null,false,false]
[null,null,"","",null,null,null,null,null,null,null,null,false,false]
[null,null,"","",null,null,null,null,null,null,null,null,false,false]
[null,null,"","",null,null,null,null,null,null,null,null,false,false]
[null,null,"","",null,null,null,null,null,null,null,null,false,false]
[null,null,"","",null,null,null,null,null,null,null,null,false,false]
[null,null,"","",null,null,null,null,null,null,null,null,false,false]
[null,null,"","",null,null,null,null,null,null,null,null,false,false]
[null,null,"","",null,null,null,null,null,null,null,null,false,false]
[null,null,"","",null,null,null,null,null,null,null,null,false,false]
[null,null,"","",null,null,null,null,null,null,null,null,false,false]
[null,null,"","",null,null,null,null,null,null,null,null,false,false]
[null,null,"","",null,null,null,null,null,null,null,null,false,false]
[null,null,"","",null,null,null,null,null,null,null,null,false,false]
[null,null,"","",null,null,null,null,null,null,null,null,false,false]
[null,null,"","",null,null,null,null,null,null,null,null,false,false]
[null,null,"","",null,null,null,null,null,null,null,null,false,false]
[null,null,"","",null,null,null,null,null,null,null,null,false,false]
[null,null,"","",null,null,null,null,null,null,null,null,false,false]
[null,null,"","",null,null,null,null,null,null,null,null,false,false]
[null,null,"","",null,null,null,null,null,null,null,null,false,false]
[null,null,"","",null,null,null,null,null,null,null,null,false,false]
[null,null,"","",null,null,null,null,null,null,null,null,false,false]
[null,null,"","",null,null,null,null,null,null,null,null,false,false]
[null,null,"","",null,null,null,null,null,null,null,null,false,false]
[null,null,"","",null,null,null,null,null,null,null,null,false,false]
[null,null,"","",null,null,null,null,null,null,null,null,false,false]
[null,null,"","",null,null,null,null,null,null,null,null,false,false]
[null,null,"","",null,null,null,null,null,null,null,null,false,false]
[null,null,"","",null,null,null,null,null,null,null,null,false,false]
[null,null,"","",null,null,null,null,null,null,null,null,false,false]
[null,null,"","",null,null,null,null,null,null,null,null,false,false]
[null,null,"","",null,null,null,null,null,null,null,null,false,false]
[null,null,"","",null,null,null,null,null,null,null,null,false,false]
[null,null,"","",null,null,null,null,null,null,null,null,false,false]
[null,null,"","",null,null,null,null,null,null,null,null,false,false]
[null,null,"","",null,null,null,null,null,null,null,null,false,false]
[null,null,"","",null,null,null,null,null,null,null,null,false,false]
[null,null,"","",null,null,null,null,null,null,null,null,false,false]
[null,null,"","",null,null,null,null,null,null,null,null,false,false]
[null,null,"","",null,null,null,null,null,null,null,null,false,false]
[null,null,"","",null,null,null,null,null,null,null,null,false,false]
[null,null,"","",null,null,null,null,null,null,null,null,false,false]
[null,null,"","",null,null,null,null,null,null,null,null,false,false]
[null,null,"","",null,null,null,null,null,null,null,null,false,false]
[null,null,"","",null,null,null,null,null,null,null,null,false,false]
[null,null,"","",null,null,null,null,null,null,null,null,false,false]
[null,null,"","",null,null,null,null,null,null,null,null,false,false]
[null,null,"","",null,null,null,null,null,null,null,null,false,false]
[null,null,"","",null,null,null,null,null,null,null,null,false,false]
[null,null,"","",null,null,null,null,null,null,null,null,false,false]
[null,null,"","",null,null,null,null,null,null,null,null,false,false]
[null,null,"","",null,null,null,null,null,null,null,null,false,false]
[null,null,"","",null,null,null,null,null,null,null,null,false,false]
[null,null,"","",null,null,null,null,null,null,null,null,false,false]
[null,null,"","",null,null,null,null,null,null,null,null,false,false]
[null,null,"","",null,null,null,null,null,null,null,null,false,false]
[null,null,{"$f":"IF(DATEDIF(B265,TODAY(),\"y\")<18,DATEDIF(B265,TODAY(),\"y\"),\"\")","v":""},"",null,null,null,null,null,null,null,null,false,false]
[null,null,"",{"$f":"IF(AND(C266>=4, C266<6), \"Squirrels\",\n IF(AND(C266>=6, C266<8), \"Beavers\",\n IF(AND(C266>=8, C266<10.5), \"Cubs\",\n IF(AND(C266>=10.5, C266<14), \"Scouts\", IF(AND(C266>14, C266<18), \"Explorers\", \"\")))))","v":""},null,null,null,null,null,null,null,null,false,false]
[null,null,"","",null,null,null,null,null,null,null,null,false,false]
[null,null,"","",null,null,null,null,null,null,null,null,false,false]
[null,null,"","",null,null,null,null,null,null,null,null,false,false]
[null,null,"","",null,null,null,null,null,null,null,null,false,false]
[null,null,"","",null,null,null,null,null,null,null,null,false,false]
[null,null,"","",null,null,null,null,null,null,null,null,false,false]
[null,null,"","",null,null,null,null,null,null,null,null,false,false]
[null,null,"","",null,null,null,null,null,null,null,null,false,false]
[null,null,"","",null,null,null,null,null,null,null,null,false,false]
[null,null,"","",null,null,null,null,null,null,null,null,false,false]
[null,null,"","",null,null,null,null,null,null,null,null,false,false]
[null,null,"","",null,null,null,null,null,null,null,null,false,false]
[null,null,"","",null,null,null,null,null,null,null,null,false,false]
[null,null,"","",null,null,null,null,null,null,null,null,false,false]
[null,null,"","",null,null,null,null,null,null,null,null,false,false]
[null,null,"","",null,null,null,null,null,null,null,null,false,false]
[null,null,"","",null,null,null,null,null,null,null,null,false,false]
[null,null,"","",null,null,null,null,null,null,null,null,false,false]
[null,null,"","",null,null,null,null,null,null,null,null,false,false]
[null,null,"","",null,null,null,null,null,null,null,null,false,false]
[null,null,"","",null,null,null,null,null,null,null,null,false,false]
[null,null,"","",null,null,null,null,null,null,null,null,false,false]
[null,null,"","",null,null,null,null,null,null,null,null,false,false]
[null,null,"","",null,null,null,null,null,null,null,null,false,false]
[null,null,"","",null,null,null,null,null,null,null,null,false,false]
[null,null,"","",null,null,null,null,null,null,null,null,false,false]
[null,null,"","",null,null,null,null,null,null,null,null,false,false]
[null,null,"","",null,null,null,null,null,null,null,null,false,false]
[null,null,"","",null,null,null,null,null,null,null,null,false,false]
[null,null,"","",null,null,null,null,null,null,null,null,false,false]
[null,null,"","",null,null,null,null,null,null,null,null,false,false]
[null,null,"","",null,null,null,null,null,null,null,null,false,false]
[null,null,"","",null,null,null,null,null,null,null,null,false,false]
[null,null,"","",null,null,null,null,null,null,null,null,false,false]
[null,null,"","",null,null,null,null,null,null,null,null,false,false]
[null,null,"","",null,null,null,null,null,null,null,null,false,false]
[null,null,"","",null,null,null,null,null,null,null,null,false,false]
[null,null,"","",null,null,null,null,null,null,null,null,false,false]
[null,null,"","",null,null,null,null,null,null,null,null,false,false]
[null,null,"","",null,null,null,null,null,null,null,null,false,false]
[null,null,"","",null,null,null,null,null,null,null,null,false,false]
[null,null,"","",null,null,null,null,null,null,null,null,false,false]
[null,null,"","",null,null,null,null,null,null,null,null,false,false]
[null,null,"","",null,null,null,null,null,null,null,null,false,false]
[null,null,"","",null,null,null,null,null,null,null,null,false,false]
[null,null,"","",null,null,null,null,null,null,null,null,false,false]
[null,null,"","",null,null,null,null,null,null,null,null,false,false]
[null,null,"","",null,null,null,null,null,null,null,null,false,false]
[null,null,"","",null,null,null,null,null,null,null,null,false,false]
[null,null,"","",null,null,null,null,null,null,null,null,false,false]
[null,null,"","",null,null,null,null,null,null,null,null,false,false]
[null,null,"","",null,null,null,null,null,null,null,null,false,false]
[null,null,"","",null,null,null,null,null,null,null,null,false,false]
[null,null,"","",null,null,null,null,null,null,null,null,false,false]
[null,null,"","",null,null,null,null,null,null,null,null,false,false]
[null,null,"","",null,null,null,null,null,null,null,null,false,false]
[null,null,"","",null,null,null,null,null,null,null,null,false,false]
[null,null,"","",null,null,null,null,null,null,null,null,false,false]
[null,null,"","",null,null,null,null,null,null,null,null,false,false]
[null,null,"","",null,null,null,null,null,null,null,null,false,false]
[null,null,"","",null,null,null,null,null,null,null,null,false,false]
[null,null,"","",null,null,null,null,null,null,null,null,false,false]
[null,null,{"$f":"IF(DATEDIF(B329,TODAY(),\"y\")<18,DATEDIF(B329,TODAY(),\"y\"),\"\")","v":""},"",null,null,null,null,null,null,null,null,false,false]
[null,null,"",{"$f":"IF(AND(C330>=4, C330<6), \"Squirrels\",\n IF(AND(C330>=6, C330<8), \"Beavers\",\n IF(AND(C330>=8, C330<10.5), \"Cubs\",\n IF(AND(C330>=10.5, C330<14), \"Scouts\", IF(AND(C330>14, C330<18), \"Explorers\", \"\")))))","v":""},null,null,null,null,null,null,null,null,false,false]
[null,null,"","",null,null,null,null,null,null,null,null,false,false]
[null,null,"","",null,null,null,null,null,null,null,null,false,false]
[null,null,"","",null,null,null,null,null,null,null,null,false,false]
[null,null,"","",null,null,null,null,null,null,null,null,false,false]
[null,null,"","",null,null,null,null,null,null,null,null,false,false]
[null,null,"","",null,null,null,null,null,null,null,null,false,false]
[null,null,"","",null,null,null,null,null,null,null,null,false,false]
[null,null,"","",null,null,null,null,null,null,null,null,false,false]
[null,null,"","",null,null,null,null,null,null,null,null,false,false]
[null,null,"","",null,null,null,null,null,null,null,null,false,false]
[null,null,"","",null,null,null,null,null,null,null,null,false,false]
[null,null,"","",null,null,null,null,null,null,null,null,false,false]
[null,null,"","",null,null,null,null,null,null,null,null,false,false]
[null,null,"","",null,null,null,null,null,null,null,null,false,false]
[null,null,"","",null,null,null,null,null,null,null,null,false,false]
[null,null,"","",null,null,null,null,null,null,null,null,false,false]
[null,null,"","",null,null,null,null,null,null,null,null,false,false]
[null,null,"","",null,null,null,null,null,null,null,null,false,false]
[null,null,"","",null,null,null,null,null,null,null,null,false,false]
[null,null,"","",null,null,null,null,null,null,null,null,false,false]
[null,null,"","",null,null,null,null,null,null,null,null,false,false]
[null,null,"","",null,null,null,null,null,null,null,null,false,false]
[null,null,"","",null,null,null,null,null,null,null,null,false,false]
[null,null,"","",null,null,null,null,null,null,null,null,false,false]
[null,null,"","",null,null,null,null,null,null,null,null,false,false]
[null,null,"","",null,null,null,null,null,null,null,null,false,false]
[null,null,"","",null,null,null,null,null,null,null,null,false,false]
[null,null,"","",null,null,null,null,null,null,null,null,false,false]
[null,null,"","",null,null,null,null,null,null,null,null,false,false]
[null,null,"","",null,null,null,null,null,null,null,null,false,false]
[null,null,"","",null,null,null,null,null,null,null,null,false,false]
[null,null,"","",null,null,null,null,null,null,null,null,false,false]
[null,null,"","",null,null,null,null,null,null,null,null,false,false]
[null,null,"","",null,null,null,null,null,null,null,null,false,false]
[null,null,"","",null,null,null,null,null,null,null,null,false,false]
[null,null,"","",null,null,null,null,null,null,null,null,false,false]
[null,null,"","",null,null,null,null,null,null,null,null,false,false]
[null,null,"","",null,null,null,null,null,null,null,null,false,false]
[null,null,"","",null,null,null,null,null,null,null,null,false,false]
[null,null,"","",null,null,null,null,null,null,null,null,false,false]
[null,null,"","",null,null,null,null,null,null,null,null,false,false]
[null,null,"","",null,null,null,null,null,null,null,null,false,false]
[null,null,"","",null,null,null,null,null,null,null,null,false,false]
[null,null,"","",null,null,null,null,null,null,null,null,false,false]
[null,null,"","",null,null,null,null,null,null,null,null,false,false]
[null,null,"","",null,null,null,null,null,null,null,null,false,false]
[null,null,"","",null,null,null,null,null,null,null,null,false,false]
[null,null,"","",null,null,null,null,null,null,null,null,false,false]
[null,null,"","",null,null,null,null,null,null,null,null,false,false]
[null,null,"","",null,null,null,null,null,null,null,null,false,false]
[null,null,"","",null,null,null,null,null,null,null,null,false,false]
[null,null,"","",null,null,null,null,null,null,null,null,false,false]
[null,null,"","",null,null,null,null,null,null,null,null,false,false]
[null,null,"","",null,null,null,null,null,null,null,null,false,false]
[null,null,"","",null,null,null,null,null,null,null,null,false,false]
[null,null,"","",null,null,null,null,null,null,null,null,false,false]
[null,null,"","",null,null,null,null,null,null,null,null,false,false]
[null,null,"","",null,null,null,null,null,null,null,null,false,false]
[null,null,"","",null,null,null,null,null,null,null,null,false,false]
[null,null,"","",null,null,null,null,null,null,null,null,false,false]
[null,null,"","",null,null,null,null,null,null,null,null,false,false]
[null,null,"","",null,null,null,null,null,null,null,null,false,false]
[null,null,{"$f":"IF(DATEDIF(B393,TODAY(),\"y\")<18,DATEDIF(B393,TODAY(),\"y\"),\"\")","v":""},"",null,null,null,null,null,null,null,null,false,false]
[null,null,"",{"$f":"IF(AND(C394>=4, C394<6), \"Squirrels\",\n IF(AND(C394>=6, C394<8), \"Beavers\",\n IF(AND(C394>=8, C394<10.5), \"Cubs\",\n IF(AND(C394>=10.5, C394<14), \"Scouts\", IF(AND(C394>14, C394<18), \"Explorers\", \"\")))))","v":""},null,null,null,null,null,null,null,null,false,false]
[null,null,"","",null,null,null,null,null,null,null,null,false,false]
[null,null,"","",null,null,null,null,null,null,null,null,false,false]
[null,null,"","",null,null,null,null,null,null,null,null,false,false]
[null,null,"","",null,null,null,null,null,null,null,null,false,false]
[null,null,"","",null,null,null,null,null,null,null,null,false,false]
[null,null,"","",null,null,null,null,null,null,null,null,false,false]
[null,null,"","",null,null,null,null,null,null,null,null,false,false]
[null,null,"","",null,null,null,null,null,null,null,null,false,false]
[null,null,"","",null,null,null,null,null,null,null,null,false,false]
[null,null,"","",null,null,null,null,null,null,null,null,false,false]